bitfinex/quotes_SOLUSD_20240628
["timestamp","ask_amount","ask_price","bid_price","bid_amount"]
[1719592471627,41.11,142.71,142.58,100.0]
[1719592473027,20.0,142.71,142.6,100.0]
[1719592473326,20.0,142.72,142.6,100.0]
[1719592473933,41.11,142.72,142.6,100.0]
[1719592474103,20.0,142.72,142.6,100.0]
[1719592475022,20.0,142.72,142.58,157.6667]
[1719592475334,20.0,142.72,142.6,100.0]
[1719592475703,20.0,142.72,142.58,157.6667]
[1719592476127,20.0,142.72,142.6,100.0]
[1719592477728,20.0,142.72,142.6,117.5312]
[1719592478224,41.11,142.72,142.58,133.12]
[1719592478427,41.11,142.72,142.6,100.0]
[1719592478605,20.0,142.72,142.6,100.0]
[1719592479634,41.11,142.72,142.6,100.0]
[1719592480430,20.0,142.72,142.6,100.0]
[1719592481202,20.0,142.72,142.6,116.3824]
[1719592481426,7.31519791,142.73,142.62,107.0112]
[1719592481738,0.8485548,142.75,142.62,114.0802]
[1719592482406,0.8485548,142.75,142.62,107.0112]
[1719592483019,0.8485548,142.75,142.62,100.0]
[1719592483215,0.8485548,142.75,142.61,3.02725622]
[1719592483216,21.11,142.74,142.61,3.02725622]
[1719592483427,21.11,142.72,142.58,5.61099954]
[1719592483624,21.11,142.7,142.56,133.12]
[1719592483831,41.11,142.69,142.56,133.12]
[1719592484506,41.11,142.69,142.56,141.70898216]
[1719592484707,41.11,142.69,142.56,148.72348216]
[1719592485129,41.11,142.69,142.56,108.58898216]
[1719592485311,41.11,142.69,142.56,141.70898216]
[1719592487144,41.11,142.69,142.56,41.70898216]
[1719592487532,41.11,142.69,142.56,141.70898216]
[1719592489114,20.0,142.69,142.57,7.069]
[1719592489435,20.0,142.72,142.58,100.0]
[1719592489808,20.0,142.72,142.56,159.24488216]
[1719592490027,20.0,142.72,142.56,166.25938216]
[1719592490226,21.11,142.71,142.56,166.25928216]
[1719592490539,41.11,142.7,142.56,166.25928216]
[1719592491034,41.11,142.7,142.56,159.24488216]
[1719592491242,41.11,142.7,142.57,7.069]
[1719592491811,20.0,142.7,142.6,100.0]
[1719592492015,20.0,142.71,142.57,7.0139]
[1719592492239,20.0,142.73,142.58,100.0]
[1719592492438,27.31872899,142.73,142.6,100.0]
[1719592492744,20.0,142.73,142.6,100.0]
[1719592492918,28.42873785,142.72,142.6,100.0]
[1719592493118,20.0,142.71,142.6,100.0]
[1719592493841,20.0,142.71,142.6,107.0122]
[1719592494019,20.0,142.73,142.6,100.0]
[1719592494376,33.12,142.74,142.62,100.0]
[1719592494714,33.12,142.74,142.62,7.069]
[1719592494916,54.23,142.74,142.61,103.02725622]
[1719592495518,33.12,142.74,142.61,103.02725622]
[1719592496148,54.23,142.74,142.61,103.02725622]
[1719592496353,20.0,142.73,142.61,103.02725622]
[1719592497440,20.0,142.73,142.62,3.02704396]
[1719592498154,41.11,142.73,142.62,3.02704396]
[1719592498341,20.0,142.73,142.62,3.02704396]
[1719592498656,41.11,142.73,142.62,3.02704396]
[1719592499360,20.0,142.73,142.62,3.02704396]
[1719592499560,20.0,142.73,142.63,1.4016581]
[1719592500139,20.0,142.73,142.62,3.02704396]
[1719592500462,41.11,142.73,142.59,100.0]
[1719592500636,41.11,142.73,142.57,33.12]
[1719592500637,20.0,142.73,142.61,100.0]
[1719592501456,20.0,142.73,142.63,100.0]
[1719592501635,20.0,142.73,142.61,100.0]
[1719592502642,20.0,142.73,142.61,103.02725622]
[1719592503235,20.0,142.73,142.62,3.02704396]
[1719592503432,20.0,142.73,142.62,10.09604396]
[1719592503748,20.0,142.73,142.63,100.0]
[1719592504331,20.0,142.73,142.63,107.069]
[1719592504736,41.9585548,142.75,142.63,107.069]
[1719592504955,41.9585548,142.75,142.63,100.0]
[1719592505166,20.8485548,142.75,142.63,100.0]
[1719592505457,20.8485548,142.75,142.63,107.069]
[1719592505763,20.8485548,142.75,142.63,100.0]
[1719592506354,0.8485548,142.75,142.65,100.0]
[1719592507149,0.8485548,142.75,142.67,100.0]
[1719592507834,0.8485548,142.75,142.64,3.02661953]
[1719592508035,0.8485548,142.75,142.65,103.02640736]
[1719592508345,0.8485548,142.75,142.65,3.02640736]
[1719592508941,41.9585548,142.75,142.63,100.0]
[1719592509341,41.9585548,142.75,142.61,33.12]
[1719592509745,21.11,142.73,142.61,33.12]
[1719592509955,20.0,142.72,142.61,33.12]
[1719592510438,41.11,142.72,142.61,33.12]
[1719592512566,41.11,142.72,142.58,133.12]
[1719592513249,41.11,142.72,142.59,1.40191891]
[1719592513453,21.11,142.7,142.56,154.4325]
[1719592513667,41.11,142.69,142.56,154.4325]
[1719592513970,20.0,142.68,142.56,154.4325]
[1719592514180,41.11,142.68,142.56,154.4325]
[1719592514349,20.0,142.68,142.57,7.069]
[1719592514669,36.56,142.68,142.62,16.56]
[1719592516242,20.0,142.68,142.56,126.94175697]
[1719592516444,21.11,142.7,142.62,16.56]
[1719592516757,16.56,142.68,142.62,16.56]
[1719592516954,66.24,142.73,142.56,105.62925697]
[1719592516955,16.56,142.66,142.56,105.62925697]
[1719592517255,16.56,142.6,142.54,16.56]
[1719592517575,16.56,142.58,142.52,16.56]
[1719592517742,20.0,142.59,142.51,16.56]
[1719592517743,16.56,142.57,142.51,16.56]
[1719592517946,20.0,142.59,142.51,16.56]
[1719592518179,41.11,142.63,142.52,16.56]
[1719592518358,120.0,142.63,142.45,117.04944363]
[1719592518547,16.56,142.59,142.49,16.56]
[1719592518750,16.56,142.54,142.49,16.56]
[1719592518949,36.56,142.53,142.44,23.10961876]
[1719592519150,20.0,142.53,142.41,115.7459]
[1719592519349,16.56,142.49,142.41,100.0]
[1719592519675,16.56,142.48,142.43,16.56]
[1719592519895,16.56,142.44,142.34,100.0]
[1719592520050,20.0,142.47,142.39,16.56]
[1719592520375,16.56,142.46,142.41,16.56]
[1719592520581,6.02053027,142.53,142.41,16.56]
[1719592520582,20.0,142.45,142.41,16.56]
[1719592520745,20.0,142.51,142.36,140.2444]
[1719592521068,21.11,142.5,142.36,140.2444]
[1719592521289,20.0,142.49,142.36,133.22]
[1719592521445,20.0,142.51,142.38,100.0]
[1719592521946,20.0,142.51,142.4,100.0]
[1719592522171,6.02053027,142.57,142.42,133.22]
[1719592522375,33.22,142.58,142.42,133.22]
[1719592523068,21.11,142.57,142.45,100.0]
[1719592523251,5.66649399,142.61,142.45,133.22]
[1719592523445,33.22,142.61,142.45,133.22]
[1719592524170,21.11,142.6,142.45,133.22]
[1719592524409,21.11,142.6,142.47,100.0]
[1719592526368,28.43668738,142.62,142.48,9.16471832]
[1719592526545,21.11,142.62,142.48,9.16471832]
[1719592526742,21.11,142.62,142.48,42.38471832]
[1719592526942,20.0,142.61,142.48,42.38471832]
[1719592527161,53.22,142.64,142.49,100.0]
[1719592527473,21.11,142.63,142.49,100.0]
[1719592527659,41.11,142.62,142.49,100.0]
[1719592527979,20.0,142.61,142.49,100.0]
[1719592528372,41.11,142.61,142.48,42.38471832]
[1719592529784,41.11,142.61,142.49,100.0]
[1719592530460,20.0,142.61,142.49,100.0]
[1719592530664,41.11,142.62,142.49,100.0]
[1719592531367,20.0,142.62,142.49,115.1199]
[1719592532161,41.11,142.62,142.49,15.1199]
[1719592532654,41.11,142.62,142.48,42.38471832]
[1719592532655,21.11,142.6,142.48,9.16471832]
[1719592532862,21.11,142.58,142.48,9.16471832]
[1719592533068,20.0,142.57,142.48,9.16471832]
[1719592533271,41.11,142.57,142.48,3.03001832]
[1719592533753,33.22,142.55,142.48,3.03001832]
[1719592534063,41.11,142.54,142.43,6.1657]
[1719592534268,41.11,142.54,142.41,21.44696613]
[1719592535702,41.11,142.54,142.41,15.7965]
[1719592535908,21.11,142.51,142.41,15.7965]
[1719592536205,41.11,142.5,142.39,6.1657]
[1719592537772,21.11,142.48,142.35,6.3927]
[1719592537973,21.11,142.46,142.35,6.3927]
[1719592538280,20.0,142.45,142.35,6.3927]
[1719592538479,41.11,142.45,142.35,6.3927]
[1719592540103,20.0,142.45,142.35,6.3927]
[1719592540396,20.0,142.45,142.35,106.3927]
[1719592540605,41.11,142.48,142.35,106.3927]
[1719592541396,20.0,142.48,142.37,107.042]
[1719592541613,7.32573838,142.52,142.37,100.0]
[1719592541614,20.0,142.49,142.37,100.0]
[1719592541788,41.11,142.51,142.37,100.0]
[1719592542300,7.32573838,142.52,142.39,100.0]
[1719592542499,7.32573838,142.52,142.4,16.4645]
[1719592543084,7.32573838,142.52,142.43,100.0]
[1719592543297,7.32573838,142.52,142.43,106.5415]
[1719592543495,21.11,142.55,142.43,106.5415]
[1719592543797,21.11,142.55,142.44,1.40227813]
[1719592544384,21.11,142.57,142.43,106.5415]
[1719592545293,7.32388474,142.58,142.45,100.0]
[1719592546008,100.0,142.64,142.47,100.0]
[1719592546304,7.32149424,142.61,142.49,116.4463]
[1719592546611,21.11,142.64,142.5,3.02959305]
[1719592546819,28.42997601,142.64,142.51,6.3303]
[1719592547311,28.42997601,142.64,142.51,106.3303]
[1719592547486,7.31997601,142.64,142.51,106.3303]
[1719592548781,7.31997601,142.64,142.53,100.0]
[1719592550079,28.42997601,142.64,142.51,106.3303]
[1719592550295,20.0,142.63,142.51,106.3303]
[1719592551093,20.0,142.63,142.51,6.3303]
[1719592551289,20.0,142.63,142.51,106.3303]
[1719592552410,41.11,142.63,142.51,6.3303]
[1719592554197,41.11,142.63,142.52,7.042]
[1719592554806,41.11,142.63,142.51,6.3303]
[1719592556514,41.11,142.63,142.51,106.3303]
[1719592556515,20.0,142.63,142.51,106.3303]
[1719592556891,20.0,142.63,142.51,6.3303]
[1719592557322,41.11,142.63,142.51,6.3303]
[1719592558816,20.0,142.63,142.51,106.3303]
[1719592559319,20.0,142.63,142.53,100.0]
[1719592559698,20.0,142.65,142.53,100.0]
[1719592560308,7.31885989,142.66,142.54,3.02874288]
[1719592560506,28.42885989,142.66,142.54,3.02874288]
[1719592560817,7.31885989,142.66,142.54,3.02874288]
[1719592561392,7.31885989,142.66,142.54,103.02874288]
[1719592561591,20.0,142.65,142.54,103.02874288]
[1719592561830,20.0,142.65,142.56,100.0]
[1719592562127,7.31885989,142.66,142.56,100.0]
[1719592564221,20.0,142.65,142.56,100.0]
[1719592564897,20.0,142.65,142.57,16.3963]
[1719592565121,21.11,142.7,142.58,100.0]
[1719592565330,37.39,142.73,142.59,6.5832]
[1719592565500,7.31621936,142.72,142.59,6.5832]
[1719592566018,21.11,142.71,142.59,6.5832]
[1719592566614,54.24,142.71,142.59,6.5832]
[1719592566813,41.11,142.7,142.59,6.5832]
[1719592567307,20.0,142.7,142.59,6.5832]
[1719592567511,20.0,142.71,142.59,6.5832]
[1719592568325,21.11,142.7,142.59,6.5832]
[1719592568500,20.0,142.69,142.59,6.5832]
[1719592568937,20.0,142.71,142.59,6.5832]
[1719592569310,41.11,142.71,142.59,6.5832]
[1719592570417,20.0,142.71,142.6,100.0]
[1719592572533,7.31621936,142.72,142.62,100.0]
[1719592573716,7.31621936,142.72,142.63,0.87347584]
[1719592573917,20.0,142.71,142.63,0.87347584]
[1719592576006,20.0,142.71,142.64,0.8734146]
[1719592576202,20.0,142.71,142.66,21.6648]
[1719592578934,20.0,142.71,142.64,16.0736]
[1719592579112,41.11,142.71,142.62,6.3751]
[1719592579712,21.11,142.69,142.62,6.3751]
[1719592579922,20.0,142.68,142.62,6.3751]
[1719592580937,20.0,142.68,142.61,16.0736]
[1719592581426,41.11,142.69,142.61,16.0736]
[1719592581920,20.0,142.69,142.61,16.0736]
[1719592583108,7.32057921,142.7,142.62,100.0]
[1719592583914,7.32057921,142.7,142.64,100.0]
[1719592584122,0.8485548,142.75,142.64,100.0]
[1719592584324,0.8485548,142.75,142.65,16.401]
[1719592586325,0.8485548,142.75,142.66,106.1065]
[1719592587423,0.8485548,142.75,142.66,6.1065]
[1719592588639,0.8485548,142.75,142.66,106.1065]
[1719592588832,0.8485548,142.75,142.66,6.1065]
[1719592589212,0.8485548,142.75,142.66,106.1065]
[1719592591328,0.8485548,142.75,142.66,113.1485]
[1719592591637,0.8485548,142.75,142.66,106.1065]
[1719592593517,0.8485548,142.75,142.68,100.0]
[1719592593715,0.8485548,142.75,142.66,6.1065]
[1719592595965,0.8485548,142.75,142.66,113.116]
[1719592596249,0.8485548,142.75,142.66,106.1065]
[1719592598034,0.8485548,142.75,142.66,6.1065]
[1719592604457,0.8485548,142.75,142.67,100.0]
[1719592606233,0.8485548,142.75,142.69,100.0]
[1719592611731,0.8485548,142.75,142.66,146.246]
[1719592612030,0.8485548,142.75,142.67,3.02598311]
[1719592612826,0.8485548,142.75,142.66,6.1065]
[1719592614338,0.8485548,142.75,142.66,106.1065]
[1719592614648,0.8485548,142.75,142.66,109.13269522]
[1719592616331,0.8485548,142.75,142.69,7.042]
[1719592616653,0.8485548,142.75,142.69,33.13]
[1719592617149,0.8485548,142.75,142.7,100.0]
[1719592620336,0.8485548,142.75,142.69,33.13]
[1719592620542,0.8485548,142.75,142.68,100.0]
[1719592620745,0.8485548,142.75,142.67,3.02598311]
[1719592621661,0.8485548,142.75,142.68,100.0]
[1719592622334,0.8485548,142.75,142.69,0.91935206]
[1719592622541,0.8485548,142.75,142.7,100.91928763]
[1719592622756,0.8485548,142.75,142.71,0.91922321]
[1719592623563,0.8485548,142.75,142.72,100.0]
[1719592623865,0.8485548,142.75,142.73,0.92101556]
[1719592625241,0.8485548,142.75,142.74,0.92095103]
[1719592626245,0.8485548,142.75,142.74,106.5105]
[1719592626560,3.66813259,142.88,142.77,100.0]
[1719592626747,4.51668739,142.89,142.77,133.13]
[1719592626933,0.8485548,142.89,142.77,133.13]
[1719592627136,0.8485548,142.89,142.77,140.1337]
[1719592627357,0.8485548,142.89,142.79,100.0]
[1719592627559,0.8485548,142.89,142.8,0.403562]
[1719592627863,0.8485548,142.89,142.81,100.0]
[1719592628045,0.8485548,142.89,142.82,0.40350548]
[1719592628246,0.8485548,142.89,142.81,122.1461]
[1719592628771,0.8485548,142.89,142.83,100.0]
[1719592629560,0.8485548,142.89,142.85,100.0]
[1719592630248,0.8485548,142.89,142.83,100.0]
[1719592630568,0.8485548,142.89,142.81,122.1461]
[1719592630860,0.8485548,142.89,142.82,7.042]
[1719592631369,0.8485548,142.89,142.81,127.67774135]
[1719592631540,40.43365632,142.97,142.87,100.0]
[1719592631541,7.30365632,142.97,142.87,100.0]
[1719592631735,7.30365632,142.97,142.86,33.13]
[1719592631968,0.8483,142.99,142.82,31.10707675]
[1719592632139,40.43433304,142.96,142.82,31.10707675]
[1719592632339,0.8483,142.95,142.79,33.13]
[1719592632540,21.11,142.92,142.78,24.82640864]
[1719592632980,21.11,142.9,142.78,16.6113]
[1719592633145,20.0,142.89,142.78,116.6113]
[1719592633342,20.0,142.91,142.8,133.13]
[1719592633765,41.11,142.94,142.8,133.13]
[1719592634365,20.0,142.94,142.82,100.0]
[1719592634756,41.11,142.94,142.8,133.13]
[1719592635477,41.11,142.94,142.82,100.0]
[1719592636273,8.15550219,142.95,142.79,103.02344008]
[1719592636480,8.15550219,142.95,142.81,100.0]
[1719592636654,8.15550219,142.95,142.79,36.15344008]
[1719592636655,8.15550219,142.95,142.79,136.15344008]
[1719592637084,21.11,142.94,142.79,136.15344008]
[1719592637254,21.11,142.94,142.81,100.0]
[1719592637567,20.0,142.93,142.8,3.02322836]
[1719592637759,20.0,142.94,142.8,3.02322836]
[1719592638147,154.24,142.93,142.8,3.02322836]
[1719592638350,154.24,142.93,142.77,6.6256]
[1719592638351,21.11,142.89,142.77,6.6256]
[1719592638577,21.11,142.87,142.74,49.3621]
[1719592638762,21.11,142.85,142.74,49.3621]
[1719592638962,20.0,142.84,142.74,16.2321]
[1719592639845,41.11,142.85,142.74,16.2321]
[1719592641386,20.0,142.85,142.74,49.3621]
[1719592641677,20.0,142.88,142.74,49.3621]
[1719592642065,20.0,142.89,142.74,49.3621]
[1719592642274,21.11,142.88,142.74,49.3621]
[1719592642456,41.11,142.87,142.74,49.3621]
[1719592642883,21.11,142.87,142.74,49.3621]
[1719592643061,28.41937944,142.87,142.74,49.3621]
[1719592643762,0.8483,142.86,142.74,16.2321]
[1719592644158,21.11,142.83,142.7,16.4274]
[1719592644509,21.11,142.81,142.7,16.4274]
[1719592644980,20.0,142.8,142.7,16.4274]
[1719592645184,41.11,142.8,142.7,16.4274]
[1719592645352,20.0,142.8,142.7,16.4274]
[1719592645554,20.0,142.81,142.7,16.4274]
[1719592646172,20.0,142.83,142.71,100.0]
[1719592646383,0.8483,142.86,142.71,100.0]
[1719592646384,21.11,142.85,142.71,100.0]
[1719592646583,20.0,142.84,142.71,100.0]
[1719592647082,20.0,142.84,142.73,100.0]
[1719592647258,20.0,142.85,142.73,100.0]
[1719592647683,21.11,142.84,142.73,33.13]
[1719592647856,41.11,142.83,142.7,52.58274695]
[1719592648065,21.11,142.83,142.7,52.58274695]
[1719592648274,41.11,142.82,142.7,52.58274695]
[1719592648478,41.11,142.82,142.7,19.45274695]
[1719592648479,20.0,142.81,142.7,19.45274695]
[1719592649086,41.11,142.81,142.7,19.45274695]
[1719592649582,20.0,142.81,142.7,119.45274695]
[1719592649791,41.11,142.82,142.7,19.45274695]
[1719592652484,20.0,142.82,142.7,126.46024695]
[1719592652691,20.0,142.83,142.7,159.59024695]
[1719592652991,20.0,142.83,142.72,100.0]
[1719592653161,41.11,142.83,142.7,152.58274695]
[1719592653362,20.0,142.83,142.72,100.0]
[1719592653883,20.0,142.83,142.73,7.042]
[1719592654090,7.31061239,142.84,142.72,100.0]
[1719592654592,7.31061239,142.84,142.73,7.042]
[1719592654763,7.31061239,142.84,142.7,159.59004695]
[1719592655085,7.31061239,142.84,142.72,100.0]
[1719592655282,7.31061239,142.84,142.7,159.59004695]
[1719592655487,20.0,142.83,142.7,159.59004695]
[1719592655875,41.11,142.83,142.7,152.58274695]
[1719592656082,41.11,142.83,142.7,52.58274695]
[1719592656262,41.11,142.83,142.7,119.45274695]
[1719592657765,41.11,142.83,142.7,19.45274695]
[1719592657964,21.11,142.81,142.7,19.45274695]
[1719592658182,33.75406456,142.8,142.71,6.076]
[1719592658382,3.64595721,142.95,142.82,15.2214]
[1719592658565,3.03398786,142.97,142.83,33.13]
[1719592658964,9.22978786,142.98,142.83,40.172]
[1719592659269,21.11,142.97,142.84,100.0]
[1719592659682,21.11,142.97,142.87,6.3959]
[1719592660192,6.1958,142.98,142.87,6.3959]
[1719592660387,6.1958,142.98,142.87,13.3952]
[1719592660590,27.5989,143.01,142.88,100.0]
[1719592661099,27.5989,143.01,142.89,16.3426]
[1719592661268,6.4889,143.01,142.9,100.0]
[1719592661663,6.4889,143.01,142.89,16.3426]
[1719592662065,6.4889,143.01,142.9,100.0]
[1719592662372,1.4921,143.03,142.9,100.0]
[1719592662577,1.4921,143.03,142.92,100.0]
[1719592662982,1.4921,143.03,142.9,100.0]
[1719592663185,0.89014477,143.04,142.93,100.0]
[1719592664904,0.89014477,143.04,142.91,106.2061]
[1719592665405,0.89014477,143.04,142.92,3.02068996]
[1719592666180,0.89014477,143.04,142.93,100.0]
[1719592666494,0.89014477,143.04,142.92,3.02068996]
[1719592666808,0.89014477,143.04,142.91,6.2061]
[1719592667987,21.11,143.02,142.89,16.3426]
[1719592668316,21.11,143.0,142.89,16.3426]
[1719592668606,41.11,142.99,142.87,6.0684]
[1719592669983,41.11,142.99,142.84,15.4229]
[1719592670498,41.11,142.99,142.85,100.0]
[1719592670813,41.11,142.99,142.84,15.4229]
[1719592673114,41.11,142.99,142.85,100.0]
[1719592673294,41.11,142.99,142.84,22.4649]
[1719592673491,41.11,142.99,142.84,15.4229]
[1719592674205,41.11,142.99,142.84,22.4649]
[1719592674412,41.11,142.99,142.85,100.0]
[1719592674715,7.30280728,143.01,142.85,100.0]
[1719592674907,28.41280728,143.01,142.87,100.0]
[1719592675097,21.11,143.01,142.87,100.0]
[1719592675715,21.11,143.01,142.85,103.02217018]
[1719592675919,21.11,143.01,142.87,100.0]
[1719592676099,41.11,143.0,142.85,103.02217018]
[1719592676794,41.11,143.0,142.86,7.042]
[1719592676997,41.11,143.0,142.87,107.042]
[1719592677312,41.11,143.0,142.87,100.0]
[1719592678414,41.11,143.0,142.87,112.82290562]
[1719592679529,20.0,143.0,142.87,105.78090562]
[1719592679893,41.11,143.0,142.87,105.78090562]
[1719592680207,41.11,143.0,142.85,103.02217018]
[1719592680513,41.11,143.0,142.85,108.72241427]
[1719592681713,41.11,143.0,142.85,3.02217018]
[1719592681714,22.6021,142.98,142.85,3.02217018]
[1719592681892,41.11,142.97,142.85,3.02217018]
[1719592682716,41.11,142.97,142.8,53.7734]
[1719592683097,41.11,142.97,142.81,100.0]
[1719592683826,21.11,142.95,142.8,56.79662836]
[1719592684003,21.11,142.93,142.8,56.79662836]
[1719592684199,41.11,142.92,142.8,19.68662836]
[1719592684511,20.0,142.91,142.8,19.68662836]
[1719592685019,20.0,142.91,142.81,100.0]
[1719592685218,20.0,142.93,142.81,100.0]
[1719592685908,41.11,142.93,142.81,100.0]
[1719592686939,41.11,142.93,142.8,25.2656741]
[1719592687105,1.4921,142.92,142.8,19.68662836]
[1719592687427,27.2088,142.91,142.8,3.02322836]
[1719592687621,21.11,142.89,142.77,260.0]
[1719592688017,20.0,142.88,142.78,100.0]
[1719592688414,20.0,142.9,142.78,100.0]
[1719592688728,20.0,142.9,142.79,100.0]
[1719592688911,20.0,142.9,142.81,100.0]
[1719592689112,20.0,142.9,142.79,103.02344008]
[1719592690204,20.0,142.9,142.8,7.042]
[1719592690408,6.0988,142.91,142.8,100.0]
[1719592691423,6.0988,142.91,142.81,7.042]
[1719592691628,15.30173681,142.95,142.85,100.0]
[1719592691833,7.999,142.95,142.85,100.0]
[1719592692625,7.999,142.95,142.84,15.2924]
[1719592693331,21.11,142.99,142.86,100.0]
[1719592694025,20.0,142.98,142.86,100.0]
[1719592694411,21.11,142.99,142.86,107.042]
[1719592695633,20.0,142.98,142.86,107.042]
[1719592695806,20.0,142.98,142.85,7.042]
[1719592696015,41.11,142.98,142.84,121.04986635]
[1719592697057,22.6021,142.96,142.82,100.0]
[1719592697236,20.0,142.95,142.82,100.0]
[1719592697533,41.11,142.95,142.82,100.0]
[1719592697744,41.11,142.95,142.82,105.71716881]
[1719592698541,41.11,142.95,142.82,5.71716881]
[1719592698834,41.11,142.95,142.82,100.0]
[1719592699920,20.0,142.95,142.84,100.0]
[1719592700112,42.6021,142.96,142.82,100.0]
[1719592700428,21.4921,142.96,142.82,100.0]
[1719592701133,21.4921,142.96,142.83,7.042]
[1719592701303,42.6021,142.96,142.82,100.0]
[1719592701509,42.6021,142.96,142.8,158.38751379]
[1719592702346,42.6021,142.96,142.82,100.0]
[1719592702509,42.6021,142.96,142.83,3.02259336]
[1719592703819,42.6021,142.96,142.8,158.38751379]
[1719592704021,42.6021,142.96,142.82,100.0]
[1719592704227,21.11,142.94,142.82,100.0]
[1719592704532,7.30071213,142.95,142.8,61.41074215]
[1719592704533,6.3945,142.92,142.8,61.41074215]
[1719592704744,20.0,142.91,142.81,100.0]
[1719592705116,20.0,142.91,142.83,133.02]
[1719592706339,20.0,142.91,142.83,33.02]
[1719592706839,20.0,142.91,142.82,3.022805]
[1719592707438,20.0,142.91,142.81,133.02]
[1719592708443,20.0,142.91,142.81,33.02]
[1719592709118,20.0,142.91,142.8,21.27751379]
[1719592710517,1.4921,142.9,142.8,21.27751379]
[1719592711247,1.4921,142.9,142.79,133.02]
[1719592711921,1.4921,142.9,142.79,138.73674422]
[1719592714043,1.4921,142.9,142.8,3.02322836]
[1719592714621,1.4921,142.9,142.81,100.0]
[1719592715139,1.4921,142.9,142.8,3.02322836]
[1719592717748,1.4921,142.9,142.81,107.042]
[1719592717950,1.4921,142.9,142.82,33.02]
[1719592718526,1.4921,142.9,142.83,7.042]
[1719592719035,1.4921,142.9,142.83,107.042]
[1719592719224,1.4921,142.9,142.83,100.0]
[1719592719543,1.4921,142.9,142.82,33.02]
[1719592720337,1.4921,142.9,142.8,3.02322836]
[1719592720536,1.4921,142.9,142.8,33.02]
[1719592722250,1.4921,142.9,142.8,133.02]
[1719592723153,0.578255,142.9,142.8,133.02]
[1719592723564,0.578255,142.9,142.82,100.0]
[1719592723951,0.578255,142.9,142.83,7.042]
[1719592725161,0.578255,142.9,142.81,7.042]
[1719592725460,0.578255,142.9,142.8,136.04322836]
[1719592728045,0.578255,142.9,142.81,7.042]
[1719592728241,0.578255,142.9,142.8,143.04592836]
[1719592728456,0.578255,142.9,142.81,17.5047]
[1719592728655,6.3945,142.92,142.83,140.0209]
[1719592728869,6.3945,142.92,142.83,147.0629]
[1719592729058,6.3945,142.92,142.83,140.0209]
[1719592730047,6.3945,142.92,142.83,133.02]
[1719592730359,6.3945,142.92,142.84,100.0]
[1719592730772,6.3945,142.92,142.86,100.0]
[1719592730947,0.5782,142.93,142.87,7.042]
[1719592731368,6.6158,142.95,142.87,7.042]
[1719592732852,6.6158,142.95,142.88,100.0]
[1719592733168,0.5782,142.96,142.9,100.0]
[1719592733968,6.6028,142.98,142.9,100.0]
[1719592734360,6.6028,142.98,142.92,100.0]
[1719592734546,6.6028,142.98,142.92,133.02]
[1719592734945,0.5782,143.0,142.92,133.02]
[1719592735171,0.5782,143.0,142.94,100.0]
[1719592735383,0.5782,143.0,142.94,107.042]